fUST/lending_fUST_20240824
["ID","MTS","AMOUNT","RATE_DAILY","PERIOD"]
[335811763,1724502644065,-715.5,0.00013698,2]
[335811765,1724502644075,-500.0,0.00013698,2]
[335811767,1724502644084,-500.0,0.00013698,2]
[335811769,1724502644094,-500.0,0.00013698,2]
[335811771,1724502644103,-1134.76,0.00013698,2]
[335811773,1724502644113,-500.0,0.00013698,2]
[335811774,1724502644122,-764.89,0.00013698,2]
[335811776,1724502644132,-260.0,0.00013698,2]
[335811778,1724502644143,-1449.01,0.00013698,2]
[335811780,1724502644152,-500.0,0.00013698,2]
[335811782,1724502644164,-500.0,0.00013698,2]
[335811784,1724502644174,-500.0,0.00013698,2]
[335811786,1724502644183,-500.0,0.00013698,2]
[335811788,1724502644193,-258.0,0.00013698,2]
[335811789,1724502644202,-500.0,0.00013698,2]
[335811790,1724502644212,-500.0,0.00013698,2]
[335811791,1724502644221,-388.01515087,0.00013698,2]
[335811792,1724502644231,-500.0,0.00013698,2]
[335811793,1724502644241,-500.0,0.00013698,2]
[335811794,1724502644250,-500.0,0.00013698,2]
[335811795,1724502644260,-500.0,0.00013698,2]
[335811796,1724502644270,-500.0,0.00013698,2]
[335811797,1724502644282,-500.0,0.00013698,2]
[335811798,1724502644293,-500.0,0.00013698,2]
[335811799,1724502644305,-500.0,0.00013698,2]
[335811800,1724502644316,-500.0,0.00013698,2]
[335811801,1724502644326,-500.0,0.00013698,2]
[335811802,1724502644336,-500.0,0.00013698,2]
[335811803,1724502644347,-500.0,0.00013698,2]
[335811804,1724502644357,-151.7,0.00013698,2]
[335811805,1724502644367,-731.75,0.00013698,2]
[335811807,1724502644377,-500.0,0.00013698,2]
[335811808,1724502644388,-500.0,0.00013698,2]
[335811810,1724502644398,-500.0,0.00013698,2]
[335811812,1724502644408,-500.0,0.00013698,2]
[335811814,1724502644417,-500.0,0.00013698,2]
[335811816,1724502644427,-500.0,0.00013698,2]
[335811818,1724502644436,-500.0,0.00013698,2]
[335811820,1724502644446,-500.0,0.00013698,2]
[335811822,1724502644455,-535.41,0.00013698,2]
[335811824,1724502644465,-571.52,0.00013698,2]
[335811826,1724502644476,-533.75,0.00013698,2]
[335811828,1724502644485,-500.77864388,0.00013698,2]
[335811830,1724502644495,-500.0,0.00013698,2]
[335811832,1724502644504,-311.69,0.00013698,2]
[335811834,1724502644514,-500.0,0.00013698,2]
[335811836,1724502644523,-500.0,0.00013698,2]
[335811838,1724502644533,-586.88,0.00013698,2]
[335811840,1724502644542,-586.88,0.00013698,2]
[335811842,1724502644552,-586.88,0.00013698,2]
[335811844,1724502644561,-586.88,0.00013698,2]
[335811846,1724502644571,-500.0,0.00013698,2]
[335811848,1724502644580,-586.88,0.00013698,2]
[335811850,1724502644590,-1668.1,0.00013698,2]
[335811852,1724502644599,-586.88,0.00013698,2]
[335811854,1724502644609,-500.0,0.00013698,2]
[335811856,1724502644619,-586.88,0.00013698,2]
[335811858,1724502644628,-500.0,0.00013698,2]
[335811860,1724502644638,-586.88,0.00013698,2]
[335811862,1724502644647,-586.88,0.00013698,2]
[335811864,1724502644657,-586.88,0.00013698,2]
[335811866,1724502644666,-586.88,0.00013698,2]
[335811868,1724502644676,-586.88,0.00013698,2]
[335811871,1724502644686,-586.88,0.00013698,2]
[335811873,1724502644695,-586.88,0.00013698,2]
[335811875,1724502644705,-586.88,0.00013698,2]
[335811877,1724502644714,-586.88,0.00013698,2]
[335811879,1724502644724,-586.88,0.00013698,2]
[335811881,1724502644734,-586.88,0.00013698,2]
[335811883,1724502644744,-586.88,0.00013698,2]
[335811885,1724502644755,-2619.89,0.00013698,2]
[335811887,1724502644765,-586.88,0.00013698,2]
[335811888,1724502644775,-586.88,0.00013698,2]
[335811889,1724502644785,-586.88,0.00013698,2]
[335811890,1724502644795,-586.88,0.00013698,2]
[335811891,1724502644805,-586.92833301,0.00013698,2]
[335811892,1724502644815,-500.0,0.00013698,2]
[335811893,1724502644824,-500.0,0.00013698,2]
[335811894,1724502644833,-500.0,0.00013698,2]
[335811895,1724502644842,-787.53,0.00013698,2]
[335811896,1724502644852,-500.0,0.00013698,2]
[335811897,1724502644861,-500.0,0.00013698,2]
[335811898,1724502644871,-500.0,0.00013698,2]
[335811899,1724502644880,-500.0,0.00013698,2]
[335811900,1724502644891,-500.0,0.00013698,2]
[335811901,1724502644901,-500.0,0.00013698,2]
[335811902,1724502644910,-500.0,0.00013698,2]
[335811903,1724502644920,-500.0,0.00013698,2]
[335811904,1724502644929,-501.19065018,0.00013698,2]
[335811905,1724502644938,-528.3863952,0.00013698,2]
[335811907,1724502644948,-500.0,0.00013698,2]
[335811909,1724502644957,-500.0,0.00013698,2]
[335811910,1724502644967,-679.83,0.00013698,2]
[335811912,1724502644976,-503.6339414,0.00013698,2]
[335811914,1724502644986,-500.0,0.00013698,2]
[335811916,1724502644995,-500.0,0.00013698,2]
[335811918,1724502645006,-2357.51,0.00013698,2]
[335811920,1724502645016,-501.77925544,0.00013698,2]
[335811922,1724502645025,-926.7,0.00013698,2]
[335811924,1724502645034,-500.0,0.00013698,2]
[335811926,1724502645044,-500.0,0.00013698,2]
[335811928,1724502645053,-501.58971639,0.00013698,2]
[335811930,1724502645062,-500.0,0.00013698,2]
[335811932,1724502645072,-507.26586184,0.00013698,2]
[335811934,1724502645081,-500.0,0.00013698,2]
[335811936,1724502645091,-500.0,0.00013698,2]
[335811938,1724502645100,-500.0,0.00013698,2]
[335811940,1724502645110,-500.0,0.00013698,2]
[335811942,1724502645119,-841.1,0.00013698,2]
[335811944,1724502645128,-500.0,0.00013698,2]
[335811945,1724502645137,-500.0,0.00013698,2]
[335811947,1724502645146,-500.0,0.00013698,2]
[335811949,1724502645155,-500.0,0.00013698,2]
[335811950,1724502645164,-500.0,0.00013698,2]
[335811951,1724502645174,-536.7811588,0.00013698,2]
[335811952,1724502645183,-387.77927612,0.00013698,2]
[335811953,1724502645205,-112.22072388,0.00013698,2]
[335811954,1724502645215,-707.55,0.00013698,2]
[335811955,1724502645225,-500.0,0.00013698,2]
[335811956,1724502645234,-160.87517627,0.00013698,2]
[335811957,1724502645244,-500.0,0.00013698,2]
[335811958,1724502645253,-354.50331179,0.00013698,2]
[335811962,1724502645292,-26.81881516,0.00013698,2]
[335812052,1724502689489,511.05431923,0.00012551,2]
[335812054,1724502843530,1125.6916796,0.00011617,2]
[335812055,1724502927146,273.37336231,0.00012111,2]
[335812062,1724503321022,167.209828,0.00011643,2]
[335812063,1724503321128,167.209828,0.0001171,2]
[335812064,1724503321562,167.209828,0.00011778,2]
[335812065,1724503321799,167.209828,0.00011845,2]
[335812066,1724503322146,167.209828,0.00011913,2]
[335812067,1724503322380,167.209828,0.0001198,2]
[335812068,1724503322628,167.209828,0.00012047,2]
[335812072,1724503396887,24890.0,0.00011289,2]
[335812074,1724503403361,1123.9224255,0.0001141,2]
[335812086,1724503621222,24911.07968479,0.00011999,2]
[335812087,1724503626416,-167.209828,0.00012115,2]
[335812088,1724503626440,-167.209828,0.00012182,2]
[335812089,1724503626463,-864.60420471,0.00012184,2]
[335812090,1724503626487,-167.209828,0.0001225,2]
[335812091,1724503626512,-300.0,0.00012355,2]
[335812092,1724503626536,-1079.73017391,0.00012356,2]
[335812093,1724503631109,-9664.212107,0.00012163,2]
[335812094,1724503631131,-8845.25511796,0.00012516,2]
[335812095,1724503631153,-2900.15716792,0.00012613,2]
[335812096,1724503634134,-594.10793712,0.00012613,2]
[335812097,1724503639149,-609.51126133,0.00012613,2]
[335812099,1724503641097,-451.1484269,0.00012613,2]
[335812100,1724503648093,-1613.61724275,0.00012551,2]
[335812101,1724503648115,-7458.7909145,0.00012613,2]
[335812102,1724503648138,-1767.34587713,0.00012779,2]
[335812103,1724503648159,-934.26607432,0.00012782,2]
[335812104,1724503648180,-1437.7886646,0.00012782,2]
[335812105,1724503648201,-640.625747,0.00012877,2]
[335812106,1724503648223,-997.64976914,0.00012897,2]
[335812107,1724503648258,-154.85281567,0.00012985,2]
[335812108,1724503648281,-601.94985179,0.00012989,2]
[335812109,1724503648303,-154.71377951,0.00012989,2]
[335812110,1724503648328,-160.46171883,0.00012989,2]
[335812111,1724503648353,-157.14223377,0.00012989,2]
[335812112,1724503648375,-156.92948105,0.00012989,2]
[335812113,1724503648396,-180.41738215,0.00012989,2]
[335812114,1724503648419,-196.83090407,0.00012989,2]
[335812115,1724503648440,-154.76012181,0.00012991,2]
[335812116,1724503648463,-155.21389728,0.00012991,2]
[335812117,1724503648485,-320.30409158,0.00012991,2]
[335812118,1724503648507,-404.47284307,0.00012991,2]
[335812119,1724503648529,-414.41200474,0.00012991,2]
[335812120,1724503648551,-376.8026316,0.00012991,2]
[335812121,1724503648572,-190.09307092,0.00012991,2]
[335812122,1724503648595,-154.94544489,0.00012991,2]
[335812123,1724503648616,-154.76012181,0.00012999,2]
[335812124,1724503648644,-569.6147727,0.00012999,2]
[335812125,1724503648666,-154.8961714,0.00012999,2]
[335812126,1724503648689,-174.85504165,0.00012999,2]
[335812127,1724503648711,-223.54518659,0.00012999,2]
[335812128,1724503648733,-215.45082928,0.00013025,2]
[335812129,1724503648756,-862.84288599,0.00013034,2]
[335812134,1724503758201,783.45181069,0.00020877,120]
[335812155,1724503838439,-355.162656,0.00012877,2]
[335812156,1724503838448,-719.90346352,0.00012886,2]
[335812157,1724503838457,-210.26167047,0.00012898,2]
[335812158,1724503838467,-154.80646411,0.00012971,2]
[335812160,1724503838476,-154.71377951,0.00012989,2]
[335812162,1724503838488,-688.74575077,0.00012989,2]
[335812163,1724503838499,-236.49115165,0.00013025,2]
[335812164,1724503838515,-458.65688396,0.00013025,2]
[335812165,1724503838525,-3295.72219116,0.00013034,2]
[335812166,1724503838537,-154.92611467,0.00013051,2]
[335812167,1724503838547,-153.0,0.00013178,2]
[335812168,1724503838556,-153.0,0.00013178,2]
[335812169,1724503838566,-153.0,0.000132,2]
[335812170,1724503838575,-306.0,0.00013206,2]
[335812171,1724503838585,-5601.39656338,0.00013465,2]
[335812172,1724503838595,-150.0,0.0001347,2]
[335812173,1724503838604,-154.76012181,0.00013496,2]
[335812174,1724503838613,-300.0,0.00013496,2]
[335812175,1724503838622,-534.91146023,0.00013496,2]
[335812176,1724503838631,-308.87373714,0.00013497,2]
[335812177,1724503838641,-3786.88282024,0.00013498,2]
[335812178,1724503838650,-5313.33307492,0.00013503,2]
[335812179,1724503838660,-531.78444987,0.00013523,2]
[335812180,1724503838669,-153.0,0.00013581,2]
[335812181,1724503838680,-153.0,0.00013581,2]
[335812182,1724503838693,-153.0,0.00013581,2]
[335812183,1724503838702,-153.0,0.00013581,2]
[335812184,1724503838712,-153.0,0.00013581,2]
[335812185,1724503838723,-153.0,0.00013581,2]
[335812186,1724503838733,-153.0,0.00013581,2]
[335812187,1724503838743,-153.0,0.00013581,2]
[335812188,1724503838752,-153.0,0.00013581,2]
[335812189,1724503838763,-153.0,0.00013581,2]
[335812190,1724503838773,-153.0,0.00013581,2]
[335812191,1724503838783,-153.0,0.00013581,2]
[335812192,1724503838792,-153.0,0.00013581,2]
[335812193,1724503838802,-153.0,0.00013581,2]
[335812194,1724503838812,-153.0,0.00013581,2]
[335812195,1724503838822,-153.0,0.00013581,2]
[335812196,1724503838831,-153.0,0.00013581,2]
[335812197,1724503838840,-153.0,0.00013581,2]
[335812198,1724503838850,-153.0,0.00013581,2]
[335812199,1724503838859,-153.0,0.00013581,2]
[335812200,1724503838869,-153.0,0.00013581,2]
[335812201,1724503838878,-153.0,0.00013581,2]
[335812202,1724503838888,-153.0,0.00013581,2]
[335812203,1724503838898,-153.0,0.00013581,2]
[335812204,1724503838907,-153.0,0.00013581,2]
[335812205,1724503838917,-153.0,0.00013588,2]
[335812206,1724503838926,-153.0,0.00013588,2]
[335812207,1724503838936,-153.0,0.00013588,2]
[335812208,1724503838946,-153.0,0.00013588,2]
[335812209,1724503838955,-153.0,0.00013588,2]
[335812210,1724503838965,-153.0,0.00013588,2]
[335812211,1724503838974,-153.0,0.00013588,2]
[335812212,1724503838983,-153.0,0.00013588,2]
[335812213,1724503838993,-153.0,0.00013588,2]
[335812214,1724503839003,-153.0,0.00013588,2]
[335812215,1724503839013,-153.0,0.00013588,2]
[335812216,1724503839022,-153.0,0.00013588,2]
[335812217,1724503839031,-153.0,0.00013588,2]
[335812218,1724503839041,-153.0,0.00013588,2]
[335812219,1724503839051,-153.0,0.00013588,2]
[335812220,1724503839060,-153.0,0.00013588,2]
[335812221,1724503839069,-153.0,0.00013588,2]
[335812222,1724503839079,-153.0,0.00013588,2]
[335812223,1724503839088,-153.0,0.00013588,2]
[335812224,1724503839098,-153.0,0.00013588,2]
[335812225,1724503839107,-153.0,0.00013588,2]
[335812226,1724503839117,-153.0,0.00013588,2]
[335812227,1724503839126,-153.0,0.00013588,2]
[335812228,1724503839135,-153.0,0.00013588,2]
[335812229,1724503839144,-153.0,0.00013588,2]
[335812230,1724503839153,-153.0,0.00013588,2]
[335812231,1724503839163,-153.0,0.00013588,2]
[335812232,1724503839172,-153.0,0.00013588,2]
[335812233,1724503839181,-153.0,0.00013588,2]
[335812234,1724503839190,-153.0,0.00013588,2]
[335812235,1724503839199,-153.0,0.00013588,2]
[335812236,1724503839208,-153.0,0.00013588,2]
[335812237,1724503839218,-153.0,0.00013588,2]
[335812238,1724503839230,-153.0,0.00013588,2]
[335812239,1724503839240,-153.0,0.00013588,2]
[335812240,1724503839249,-172.66402829,0.00013588,2]
[335812241,1724503839262,-47075.16880058,0.00013588,2]
[335812242,1724503839279,-1269.91300588,0.00013588,2]
[335812243,1724503839290,-40004.09071954,0.00013588,2]
[335812244,1724503839299,-172.66402826,0.00013591,2]
[335812245,1724503839308,-172.66402826,0.00013593,2]
[335812246,1724503839317,-153.0,0.00013595,2]
[335812247,1724503839326,-153.0,0.00013595,2]
[335812248,1724503839335,-153.0,0.00013595,2]
[335812249,1724503839344,-153.0,0.00013595,2]
[335812250,1724503839353,-172.66402826,0.00013596,2]
[335812251,1724503839362,-2620.0261904,0.00013596,2]
[335812252,1724503839371,-172.66402826,0.00013598,2]
[335812253,1724503839380,-40000.0,0.00013598,2]
[335812254,1724503839390,-23449.94050704,0.00013598,2]
[335812255,1724503839399,-37339.48720928,0.00013598,2]
[335812256,1724503839409,-256.26265091,0.00013599,2]
[335812257,1724503839417,-2500.0,0.000136,2]
[335812258,1724503839427,-150.112233,0.000136,2]
[335812259,1724503839436,-173.505299,0.000136,2]
[335812260,1724503839446,-243.2101,0.0001363,2]
[335812261,1724503839455,-258.7117552,0.00013665,2]
[335812262,1724503839464,-500.0,0.00013673,2]
[335812263,1724503839473,-350.02199508,0.00013673,2]
[335812264,1724503839483,-155.0,0.00013673,2]
[335812265,1724503839492,-190.01792927,0.00013673,2]
[335812266,1724503839502,-450.16806322,0.00013673,2]
[335812267,1724503839512,-158.8,0.00013673,2]
[335812268,1724503839521,-500.0,0.00013673,2]
[335812269,1724503839530,-500.0,0.00013673,2]
[335812270,1724503839539,-500.0,0.00013673,2]
[335812271,1724503839548,-176698.345052,0.00013676,2]
[335812272,1724503839558,-600.0,0.00013676,2]
[335812273,1724503839567,-68038.20577899,0.00013686,2]
[335812274,1724503839577,-22006.00212483,0.00013688,2]
[335812275,1724503839587,-22006.00212483,0.00013688,2]
[335812276,1724503839596,-898.81779354,0.00013688,2]
[335812277,1724503839605,-495.34936838,0.00013688,2]
[335812278,1724503839615,-44891.27351904,0.00013688,2]
[335812279,1724503839631,-30281.66439518,0.00013688,2]
[335812312,1724503840573,-154.71377951,0.00013477,2]
[335812314,1724503840583,-2282.92421799,0.00013497,3]
[335812316,1724503840593,-188.4919207,0.00013688,2]
[335812318,1724503840605,-62735.281294,0.00013688,2]
[335812350,1724503840928,-2348.9279524,0.00013688,2]
[335812367,1724503843422,-1000.0,0.00013,13]
[335812368,1724503843432,-22006.00212483,0.00013688,2]
[335812369,1724503843441,-36441.19789138,0.00013688,2]
[335812370,1724503843451,-11178.88517804,0.00013696,3]
[335812371,1724503843460,-214.4036946,0.00013697,2]
[335812372,1724503843470,-5889.5814492,0.00013697,2]
[335812373,1724503843480,-500.0,0.00013698,2]
[335812374,1724503843489,-500.0,0.00013698,2]
[335812375,1724503843499,-500.0,0.00013698,2]
[335812376,1724503843508,-259.43452394,0.00013698,2]
[335812377,1724503843518,-500.0,0.00013698,2]
[335812378,1724503843527,-500.0,0.00013698,2]
[335812379,1724503843536,-500.0,0.00013698,2]
[335812380,1724503843546,-500.0,0.00013698,2]
[335812381,1724503843555,-500.0,0.00013698,2]
[335812382,1724503843564,-500.0,0.00013698,2]
[335812383,1724503843574,-500.0,0.00013698,2]
[335812384,1724503843583,-371.64930465,0.00013698,2]
[335812385,1724503843592,-500.0,0.00013698,2]
[335812386,1724503843602,-500.0,0.00013698,2]
[335812387,1724503843612,-500.0,0.00013698,2]
[335812388,1724503843621,-399.47003067,0.00013698,2]
[335812389,1724503843631,-479.13009332,0.00013698,2]
[335812390,1724503843640,-500.0,0.00013698,2]
[335812391,1724503843650,-500.0,0.00013698,2]
[335812392,1724503843659,-616.21891281,0.00013698,2]
[335812393,1724503843851,-500.0,0.00013698,2]
[335812394,1724503843870,-500.0,0.00013698,2]
[335812395,1724503843881,-201.50389833,0.00013698,2]
[335812396,1724503843890,-500.0,0.00013698,2]
[335812397,1724503843900,-504.53621322,0.00013698,2]
[335812398,1724503843910,-505.53699037,0.00013698,2]
[335812399,1724503843919,-291.86163997,0.00013698,2]
[335812400,1724503843929,-501.33411364,0.00013698,2]
[335812401,1724503843939,-513.24810199,0.00013698,2]
[335812402,1724503843948,-500.0,0.00013698,2]
[335812403,1724503843957,-443.15499385,0.00013698,2]
[335812404,1724503843967,-500.0,0.00013698,2]
[335812405,1724503843977,-500.0,0.00013698,2]
[335812406,1724503843988,-196.49686829,0.00013698,2]
[335812408,1724503846361,-67.72347348,0.00013698,2]
[335812409,1724503846483,-305.10709585,0.00013698,2]
[335812413,1724503850065,150.3,0.00010959,2]
[335812414,1724503860582,751.5,0.00010959,2]
[335812430,1724504701175,22006.00212483,0.00011999,2]
[335812431,1724504730519,1150.55508048,0.00027,120]
[335812436,1724504828348,2282.92421799,0.00011999,3]
[335812437,1724504834160,-898.81779354,0.00012163,2]
[335812438,1724504834182,-166.084485,0.00012228,2]
[335812439,1724504834204,-166.084485,0.00012268,2]
[335812440,1724504834225,-166.084485,0.00012308,2]
[335812441,1724504834247,-166.084485,0.00012347,2]
[335812442,1724504834271,-166.084485,0.00012387,2]
[335812443,1724504834293,-166.084485,0.00012427,2]
[335812444,1724504834315,-166.084485,0.00012467,2]
[335812445,1724504834337,-166.084485,0.00012507,2]
[335812446,1724504834358,-5164.93486908,0.00012516,2]
[335812447,1724504840611,-5339.53865923,0.00012516,2]
[335812448,1724504840634,-166.084485,0.00012547,2]
[335812449,1724504840656,-300.0,0.0001255,2]
[335812450,1724504840676,-300.0,0.0001255,2]
[335812451,1724504840699,-166.084485,0.00012586,2]
[335812452,1724504840721,-166.084485,0.00012626,2]
[335812453,1724504840744,-695.14803561,0.00012629,2]
[335812454,1724504840766,-695.14803561,0.00012629,2]
[335812455,1724504840795,-166.084485,0.00012666,2]
[335812456,1724504840816,-166.084485,0.00012706,2]
[335812457,1724504840837,-166.084485,0.00012746,2]
[335812458,1724504840857,-481.15012294,0.00012782,2]
[335812459,1724504844255,-452.0896187,0.00012782,2]
[335812460,1724504844278,-166.084485,0.00012786,2]
[335812461,1724504844300,-166.084485,0.00012825,2]
[335812462,1724504844321,-166.084485,0.00012865,2]
[335812463,1724504844342,-9.06772001,0.00012877,2]
[335812465,1724504846596,-676.53139839,0.00012551,2]
[335812467,1724504917505,1500.0,0.0001211,2]
[335812469,1724504971154,-671.12307173,0.00012356,2]
[335812477,1724505014411,197.64982571,0.00012297,2]
[335812478,1724505014434,248.09812715,0.00012297,2]
[335812479,1724505014456,172.5994421,0.00012297,2]
[335812480,1724505014476,218.92692187,0.00012297,2]
[335812481,1724505014497,212.99928523,0.00012297,2]
[335812482,1724505014519,255.66885276,0.00012297,2]
[335812483,1724505014541,265.69811214,0.00012297,2]
[335812525,1724505032658,-10709.85386757,0.00012297,2]
[335812559,1724505038741,-1371.40881746,0.00012297,2]
[335812562,1724505039645,-978.61019593,0.00012297,2]
[335812563,1724505039659,-10268.48655208,0.00012297,2]
[335812564,1724505039668,-342.6945234,0.00012689,2]
[335812565,1724505039679,-154.72922386,0.00012689,2]
[335812566,1724505039689,-156.75274469,0.00012779,2]
[335812567,1724505039700,-155.22801998,0.00012782,2]
[335812568,1724505039711,-346.09493599,0.00012877,2]
[335812569,1724505039723,-154.72922386,0.00012886,2]
[335812570,1724505039734,-154.72922386,0.00012886,2]
[335812571,1724505039745,-256.26265091,0.00012971,2]
[335812572,1724505039755,-154.80646411,0.00012971,2]
[335812573,1724505039765,-153.0,0.000131,2]
[335812574,1724505039775,-153.0,0.00013123,2]
[335812575,1724505039784,-153.0,0.00013143,2]
[335812576,1724505039794,-153.0,0.00013143,2]
[335812577,1724505039803,-306.0,0.00013143,2]
[335812578,1724505039813,-308.2486464,0.00013288,2]
[335812579,1724505039823,-495.34936838,0.00013333,2]
[335812580,1724505039832,-153.0,0.00013425,2]
[335812581,1724505039842,-1000.0,0.00013451,2]
[335812582,1724505039853,-300.0,0.00013474,2]
[335812583,1724505039863,-300.0,0.00013503,2]
[335812584,1724505039873,-172.66402826,0.00013522,2]
[335812585,1724505039882,-2000.0,0.00013534,2]
[335812586,1724505039891,-207.7300879,0.00013534,2]
[335812587,1724505039900,-207.7300879,0.00013534,2]
[335812588,1724505039910,-207.7300879,0.00013534,2]
[335812589,1724505039919,-153.0,0.00013534,2]
[335812590,1724505039929,-207.7300879,0.00013534,2]
[335812591,1724505039939,-153.0,0.00013534,2]
[335812592,1724505039948,-153.0,0.00013534,2]
[335812593,1724505039958,-207.7300879,0.00013534,2]
[335812594,1724505039968,-207.7300879,0.00013534,2]
[335812595,1724505039977,-207.7300879,0.00013534,2]
[335812596,1724505039987,-418.5906915,0.00013534,2]
[335812597,1724505039997,-207.7300879,0.00013534,2]
[335812598,1724505040007,-172.66402826,0.00013547,2]
[335812599,1724505040017,-31655.1162125,0.00013568,2]
[335812600,1724505040027,-5720.57521366,0.00013572,2]
[335812601,1724505040040,-172.66402826,0.00013573,2]
[335812602,1724505040049,-3749.01365244,0.00013574,2]
[335812603,1724505040059,-153.0,0.00013575,2]
[335812604,1724505040069,-153.0,0.00013575,2]
[335812605,1724505040082,-153.0,0.00013575,2]
[335812606,1724505040092,-153.0,0.00013575,2]
[335812607,1724505040103,-153.0,0.00013575,2]
[335812608,1724505040115,-153.0,0.00013575,2]
[335812609,1724505040126,-153.0,0.00013575,2]
[335812610,1724505040137,-153.0,0.00013575,2]
[335812611,1724505040147,-153.0,0.00013575,2]
[335812612,1724505040156,-153.0,0.00013575,2]
[335812613,1724505040166,-153.0,0.00013575,2]
[335812614,1724505040175,-153.0,0.00013575,2]
[335812615,1724505040184,-153.0,0.00013575,2]
[335812616,1724505040193,-153.0,0.00013575,2]
[335812617,1724505040202,-153.0,0.00013575,2]
[335812618,1724505040212,-153.0,0.00013575,2]
[335812619,1724505040222,-153.0,0.00013575,2]
[335812620,1724505040231,-153.0,0.00013577,2]
[335812621,1724505040241,-153.0,0.00013577,2]
[335812622,1724505040250,-153.0,0.00013577,2]
[335812623,1724505040260,-153.0,0.00013577,2]
[335812624,1724505040269,-153.0,0.00013577,2]
[335812625,1724505040278,-153.0,0.00013577,2]
[335812626,1724505040287,-153.0,0.00013577,2]
[335812627,1724505040297,-153.0,0.00013577,2]
[335812628,1724505040306,-153.0,0.00013577,2]
[335812629,1724505040315,-153.0,0.00013577,2]
[335812630,1724505040325,-153.0,0.00013577,2]
[335812631,1724505040335,-153.0,0.00013577,2]
[335812632,1724505040344,-153.0,0.00013577,2]
[335812633,1724505040353,-37339.48720928,0.00013578,2]
[335812634,1724505040363,-84746.3399868,0.00013588,2]
[335812635,1724505040373,-3101.74732499,0.00013597,2]
[335812636,1724505040383,-172.66402826,0.00013598,2]
[335812637,1724505040392,-40000.0,0.00013598,2]
[335812638,1724505040401,-1000.0,0.00013622,2]
[335812639,1724505040411,-84746.3399868,0.00013628,2]
[335812640,1724505040420,-243.2101,0.0001363,2]
[335812641,1724505040430,-258.7117552,0.00013652,2]
[335812642,1724505040439,-190.01792927,0.00013673,2]
[335812643,1724505040449,-158.8,0.00013673,2]
[335812645,1724505040459,-500.0,0.00013673,2]
[335812646,1724505040468,-350.02199508,0.00013673,2]
[335812647,1724505040477,-450.16806322,0.00013673,2]
[335812648,1724505040487,-155.0,0.00013673,2]
[335812649,1724505040496,-500.0,0.00013673,2]
[335812650,1724505040505,-500.0,0.00013673,2]
[335812652,1724505040514,-500.0,0.00013673,2]
[335812653,1724505040523,-600.0,0.00013676,2]
[335812654,1724505040532,-254239.019961,0.00013688,2]
[335812655,1724505040542,-11178.88517804,0.00013696,2]
[335812656,1724505040552,-209.7598205,0.00013697,2]
[335812657,1724505040563,-882.89909827,0.00013697,2]
[335812658,1724505040572,-214.4036946,0.00013697,2]
[335812659,1724505040582,-500.0,0.00013698,2]
[335812660,1724505040591,-431.3535085,0.00013698,2]
[335812661,1724505040600,-500.0,0.00013698,2]
[335812662,1724505040610,-500.0,0.00013698,2]
[335812663,1724505040619,-500.0,0.00013698,2]
[335812665,1724505040630,-500.0,0.00013698,2]
[335812666,1724505040640,-616.21891281,0.00013698,2]
[335812667,1724505040650,-500.0,0.00013698,2]
[335812668,1724505040659,-500.0,0.00013698,2]
[335812669,1724505040669,-500.0,0.00013698,2]
[335812670,1724505040678,-500.0,0.00013698,2]
[335812671,1724505040688,-500.0,0.00013698,2]